[Event "Titled Tuesday Blitz February 15 Late 2022"]
[White "Hamley, Ryan"]
[Black "Mikhailovsky, Vladimir"]
[WhiteFideId "30959497"]
[BlackFideId "34105414"]
[WhiteElo "2384"]
[BlackElo "2371"]
[Result "0-1"]
[Round "01"]
[TimeControl "180+1"]
[Date "2022.02.16"]
[WhiteClock "0:00:05"]
[BlackClock "0:00:08"]

1. e4 {[%clk 0:02:58]}  Nf6 {[%clk 0:03:00]} 2. e5 {[%clk 0:02:58]}  Nd5 {[%clk 0:03:01]} 3. d4 {[%clk 0:02:58]}  d6 {[%clk 0:03:01]} 4. Nf3 {[%clk 0:02:59]}  dxe5 {[%clk 0:03:02]} 5. Nxe5 {[%clk 0:03:00]}  c6 {[%clk 0:03:02]} 6. Be2 {[%clk 0:02:59]}  Bf5 {[%clk 0:03:03]} 7. O-O {[%clk 0:03:00]}  Nd7 {[%clk 0:03:03]} 8. Nc4 {[%clk 0:02:59]}  e6 {[%clk 0:03:03]} 9. c3 {[%clk 0:02:59]}  Be7 {[%clk 0:02:59]} 10. Nbd2 {[%clk 0:02:59]}  O-O {[%clk 0:02:59]} 11. Nf3 {[%clk 0:02:59]}  c5 {[%clk 0:02:58]} 12. dxc5 {[%clk 0:02:57]}  Nxc5 {[%clk 0:02:58]} 13. Ne3 {[%clk 0:02:57]}  Be4 {[%clk 0:02:51]} 14. Nxd5 {[%clk 0:02:37]}  Bxd5 {[%clk 0:02:52]} 15. Be3 {[%clk 0:02:37]}  Qc7 {[%clk 0:02:47]} 16. h3 {[%clk 0:02:31]}  Rfd8 {[%clk 0:02:46]} 17. Qc1 {[%clk 0:02:26]}  Be4 {[%clk 0:02:38]} 18. Nd2 {[%clk 0:02:10]}  Nd3 {[%clk 0:02:27]} 19. Qc2 {[%clk 0:02:00]}  Bg6 {[%clk 0:02:05]} 20. Qb3 {[%clk 0:02:00]}  Rd7 {[%clk 0:01:27]} 21. Rad1 {[%clk 0:01:55]}  Rad8 {[%clk 0:01:24]} 22. Nf3 {[%clk 0:01:39]}  Nc5 {[%clk 0:00:54]} 23. Qc4 {[%clk 0:01:35]}  Bd3 {[%clk 0:00:36]} 24. Bxd3 {[%clk 0:01:34]}  Nxd3 {[%clk 0:00:37]} 25. Qxc7 {[%clk 0:01:15]}  Rxc7 {[%clk 0:00:38]} 26. Rd2 {[%clk 0:01:16]}  b6 {[%clk 0:00:29]} 27. Rfd1 {[%clk 0:01:16]}  Rcd7 {[%clk 0:00:30]} 28. a4 {[%clk 0:01:03]}  Kf8 {[%clk 0:00:29]} 29. Kf1 {[%clk 0:00:59]}  Ke8 {[%clk 0:00:28]} 30. a5 {[%clk 0:00:56]}  bxa5 {[%clk 0:00:20]} 31. Ra1 {[%clk 0:00:56]}  Rb8 {[%clk 0:00:15]} 32. Rxa5 {[%clk 0:00:39]}  Rxb2 {[%clk 0:00:15]} 33. Rxb2 {[%clk 0:00:28]}  Nxb2 {[%clk 0:00:16]} 34. Rxa7 {[%clk 0:00:29]}  Nd1 {[%clk 0:00:16]} 35. Ra8+ {[%clk 0:00:28]}  Bd8 {[%clk 0:00:13]} 36. Bd4 {[%clk 0:00:26]}  f6 {[%clk 0:00:13]} 37. Ke2 {[%clk 0:00:26]}  Nb2 {[%clk 0:00:13]} 38. Nd2 {[%clk 0:00:17]}  e5 {[%clk 0:00:13]} 39. Bb6 {[%clk 0:00:17]}  Ke7 {[%clk 0:00:13]} 40. Bc5+ {[%clk 0:00:17]}  Ke6 {[%clk 0:00:14]} 41. Ra6+ {[%clk 0:00:16]}  Kd5 {[%clk 0:00:14]} 42. Be3 {[%clk 0:00:16]}  Nc4 {[%clk 0:00:12]} 43. Ra8 {[%clk 0:00:12]}  Nxe3 {[%clk 0:00:07]} 44. Kxe3 {[%clk 0:00:11]}  Bb6+ {[%clk 0:00:08]} 45. Ke2 {[%clk 0:00:12]}  Rc7 {[%clk 0:00:08]} 46. Rd8+ {[%clk 0:00:12]}  Ke6 {[%clk 0:00:07]} 47. Rh8 {[%clk 0:00:11]}  h6 {[%clk 0:00:05]} 48. Rg8 {[%clk 0:00:10]}  Kf7 {[%clk 0:00:04]} 49. Rb8 {[%clk 0:00:09]}  Ba5 {[%clk 0:00:04]} 50. Ne4 {[%clk 0:00:04]}  Bxc3 {[%clk 0:00:04]} 51. Nxc3 {[%clk 0:00:03]}  Rxc3 {[%clk 0:00:05]} 52. Rb7+ {[%clk 0:00:03]}  Kg6 {[%clk 0:00:05]} 53. f3 {[%clk 0:00:03]}  h5 {[%clk 0:00:05]} 54. Kf2 {[%clk 0:00:03]}  h4 {[%clk 0:00:06]} 55. Rb6 {[%clk 0:00:03]}  Kf5 {[%clk 0:00:05]} 56. Rb4 {[%clk 0:00:02]}  Rc2+ {[%clk 0:00:05]} 57. Kg1 {[%clk 0:00:02]}  g5 {[%clk 0:00:06]} 58. Ra4 {[%clk 0:00:03]}  Re2 {[%clk 0:00:06]} 59. Rg4 {[%clk 0:00:02]}  e4 {[%clk 0:00:06]} 60. Kf1 {[%clk 0:00:02]}  exf3 {[%clk 0:00:05]} 61. gxf3 {[%clk 0:00:02]}  Rh2 {[%clk 0:00:06]} 62. Kg1 {[%clk 0:00:02]}  Rxh3 {[%clk 0:00:07]} 63. Kf2 {[%clk 0:00:02]}  Rh2+ {[%clk 0:00:06]} 64. Kg1 {[%clk 0:00:02]}  Ra2 {[%clk 0:00:06]} 65. Rb4 {[%clk 0:00:03]}  Kg6 {[%clk 0:00:04]} 66. Kh1 {[%clk 0:00:03]}  f5 {[%clk 0:00:05]} 67. Kg1 {[%clk 0:00:04]}  Ra3 {[%clk 0:00:04]} 68. Kg2 {[%clk 0:00:03]}  Kh5 {[%clk 0:00:04]} 69. Rb5 {[%clk 0:00:03]}  h3+ {[%clk 0:00:03]} 70. Kg3 {[%clk 0:00:02]}  f4+ {[%clk 0:00:02]} 71. Kxh3 {[%clk 0:00:01]}  Rxf3+ {[%clk 0:00:02]} 72. Kg2 {[%clk 0:00:02]}  Rg3+ {[%clk 0:00:02]} 73. Kf2 {[%clk 0:00:03]}  Kg4 {[%clk 0:00:02]} 74. Rb8 {[%clk 0:00:04]}  Rf3+ {[%clk 0:00:03]} 75. Kg2 {[%clk 0:00:04]}  Re3 {[%clk 0:00:04]} 76. Kf2 {[%clk 0:00:05]}  Ra3 {[%clk 0:00:05]} 77. Rg8 {[%clk 0:00:05]}  Ra2+ {[%clk 0:00:05]} 78. Ke1 {[%clk 0:00:05]}  Ra5 {[%clk 0:00:05]} 79. Rf8 {[%clk 0:00:05]}  Kg3 {[%clk 0:00:06]} 80. Ke2 {[%clk 0:00:05]}  g4 {[%clk 0:00:06]} 81. Rh8 {[%clk 0:00:05]}  Kg2 {[%clk 0:00:07]} 82. Rf8 {[%clk 0:00:05]}  f3+ {[%clk 0:00:07]} 83. Ke3 {[%clk 0:00:05]}  g3 {[%clk 0:00:08]} 0-1


[Site "https://www.chess.com"]

[Event "Titled Tuesday Blitz February 15 Late 2022"]
[White "Dronavalli, Harika"]
[Black "Xie, Bryan"]
[WhiteFideId "5015197"]
[BlackFideId "30941296"]
[WhiteElo "2382"]
[BlackElo "1899"]
[Result "1-0"]
[Round "01"]
[TimeControl "180+1"]
[Date "2022.02.16"]
[WhiteClock "0:01:43"]
[BlackClock "0:00:09"]

1. d4 {[%clk 0:02:59]}  Nf6 {[%clk 0:02:57]} 2. c4 {[%clk 0:02:58]}  e6 {[%clk 0:02:58]} 3. Nc3 {[%clk 0:02:53]}  Bb4 {[%clk 0:02:58]} 4. e3 {[%clk 0:02:52]}  O-O {[%clk 0:02:56]} 5. Bd2 {[%clk 0:02:53]}  c5 {[%clk 0:02:55]} 6. Nf3 {[%clk 0:02:51]}  cxd4 {[%clk 0:02:55]} 7. Nxd4 {[%clk 0:02:51]}  Nc6 {[%clk 0:02:49]} 8. Be2 {[%clk 0:02:38]}  Nxd4 {[%clk 0:02:48]} 9. exd4 {[%clk 0:02:38]}  d5 {[%clk 0:02:49]} 10. c5 {[%clk 0:02:37]}  b6 {[%clk 0:02:43]} 11. a3 {[%clk 0:02:35]}  Bxc3 {[%clk 0:02:42]} 12. Bxc3 {[%clk 0:02:35]}  bxc5 {[%clk 0:02:43]} 13. dxc5 {[%clk 0:02:35]}  Bb7 {[%clk 0:02:36]} 14. Qd4 {[%clk 0:02:31]}  Re8 {[%clk 0:02:34]} 15. f4 {[%clk 0:02:24]}  Bc6 {[%clk 0:01:32]} 16. b4 {[%clk 0:02:18]}  Rb8 {[%clk 0:01:31]} 17. a4 {[%clk 0:02:14]}  Qc7 {[%clk 0:01:13]} 18. O-O {[%clk 0:02:10]}  Rec8 {[%clk 0:00:50]} 19. Rac1 {[%clk 0:02:09]}  Bxa4 {[%clk 0:00:48]} 20. Ra1 {[%clk 0:01:56]}  Bb5 {[%clk 0:00:47]} 21. Bxb5 {[%clk 0:01:55]}  Rxb5 {[%clk 0:00:48]} 22. Ra6 {[%clk 0:01:55]}  Ne8 {[%clk 0:00:30]} 23. Rfa1 {[%clk 0:01:54]}  Ra8 {[%clk 0:00:23]} 24. h3 {[%clk 0:01:52]}  f6 {[%clk 0:00:20]} 25. Rxe6 {[%clk 0:01:51]}  Qd7 {[%clk 0:00:20]} 26. Rae1 {[%clk 0:01:50]}  Nc7 {[%clk 0:00:19]} 27. Re7 {[%clk 0:01:50]}  Qd8 {[%clk 0:00:19]} 28. f5 {[%clk 0:01:45]}  a6 {[%clk 0:00:16]} 29. Qg4 {[%clk 0:01:44]}  d4 {[%clk 0:00:09]} 30. Qxg7# {[%clk 0:01:43]} 1-0


[Site "https://www.chess.com"]

[Event "Titled Tuesday Blitz February 15 Late 2022"]
[White "Haszon, David"]
[Black "Csonka, Balazs"]
[WhiteFideId "733610"]
[BlackFideId "742910"]
[WhiteElo "2201"]
[BlackElo "2404"]
[Result "1/2-1/2"]
[Round "01"]
[TimeControl "180+1"]
[Date "2022.02.16"]
[WhiteClock "0:00:16"]
[BlackClock "0:00:02"]

1. e4 {[%clk 0:02:57]}  e6 {[%clk 0:02:56]} 2. d4 {[%clk 0:02:57]}  d5 {[%clk 0:02:56]} 3. Nd2 {[%clk 0:02:55]}  Be7 {[%clk 0:02:54]} 4. Ngf3 {[%clk 0:02:51]}  c5 {[%clk 0:02:50]} 5. exd5 {[%clk 0:02:49]}  exd5 {[%clk 0:02:48]} 6. dxc5 {[%clk 0:02:49]}  Bxc5 {[%clk 0:02:46]} 7. Nb3 {[%clk 0:02:48]}  Bb6 {[%clk 0:02:45]} 8. Bb5+ {[%clk 0:02:47]}  Nc6 {[%clk 0:02:44]} 9. O-O {[%clk 0:02:45]}  Ne7 {[%clk 0:02:44]} 10. c3 {[%clk 0:02:45]}  O-O {[%clk 0:02:43]} 11. h3 {[%clk 0:02:40]}  Bf5 {[%clk 0:02:32]} 12. Bd3 {[%clk 0:02:38]}  Be4 {[%clk 0:02:26]} 13. Re1 {[%clk 0:02:31]}  Bxf3 {[%clk 0:01:48]} 14. Qxf3 {[%clk 0:02:30]}  Ng6 {[%clk 0:01:49]} 15. Qg3 {[%clk 0:02:00]}  Re8 {[%clk 0:01:25]} 16. Be3 {[%clk 0:01:49]}  Bc7 {[%clk 0:00:57]} 17. Qg5 {[%clk 0:01:45]}  Qd6 {[%clk 0:00:50]} 18. g3 {[%clk 0:01:33]}  Re5 {[%clk 0:00:48]} 19. Qg4 {[%clk 0:01:29]}  Rae8 {[%clk 0:00:48]} 20. Bxg6 {[%clk 0:01:13]}  hxg6 {[%clk 0:00:44]} 21. Bd2 {[%clk 0:01:11]}  Qf6 {[%clk 0:00:36]} 22. Rxe5 {[%clk 0:01:08]}  Nxe5 {[%clk 0:00:35]} 23. Qa4 {[%clk 0:00:51]}  Re6 {[%clk 0:00:20]} 24. Nd4 {[%clk 0:00:50]}  Bb6 {[%clk 0:00:12]} 25. Bf4 {[%clk 0:00:38]}  Bxd4 {[%clk 0:00:10]} 26. cxd4 {[%clk 0:00:39]}  Nf3+ {[%clk 0:00:09]} 27. Kg2 {[%clk 0:00:39]}  Nxd4 {[%clk 0:00:08]} 28. Rd1 {[%clk 0:00:36]}  Ne2 {[%clk 0:00:05]} 29. Rxd5 {[%clk 0:00:31]}  Nxf4+ {[%clk 0:00:04]} 30. Qxf4 {[%clk 0:00:30]}  Qxf4 {[%clk 0:00:04]} 31. Rd8+ {[%clk 0:00:28]}  Kh7 {[%clk 0:00:03]} 32. gxf4 {[%clk 0:00:29]}  Re2 {[%clk 0:00:03]} 33. b3 {[%clk 0:00:27]}  Rxa2 {[%clk 0:00:03]} 34. Rd7 {[%clk 0:00:26]}  b5 {[%clk 0:00:03]} 35. Rxf7 {[%clk 0:00:24]}  Ra3 {[%clk 0:00:03]} 36. Rb7 {[%clk 0:00:23]}  Rxb3 {[%clk 0:00:02]} 37. Rxa7 {[%clk 0:00:24]}  b4 {[%clk 0:00:03]} 38. Rb7 {[%clk 0:00:24]}  Rb1 {[%clk 0:00:02]} 39. Kf3 {[%clk 0:00:23]}  b3 {[%clk 0:00:02]} 40. Rb5 {[%clk 0:00:19]}  b2 {[%clk 0:00:02]} 41. h4 {[%clk 0:00:19]}  Kh6 {[%clk 0:00:02]} 42. Rb8 {[%clk 0:00:16]}  Kh7 {[%clk 0:00:02]} 43. Rb5 {[%clk 0:00:16]}  Kg8 {[%clk 0:00:02]} 44. Rb8+ {[%clk 0:00:16]}  Kf7 {[%clk 0:00:02]} 45. Rb7+ {[%clk 0:00:16]}  Ke6 {[%clk 0:00:02]} 46. Rb6+ {[%clk 0:00:17]}  Kd5 {[%clk 0:00:02]} 47. Rb8 {[%clk 0:00:17]}  Kd4 {[%clk 0:00:02]} 48. Rb7 {[%clk 0:00:17]}  Kc3 {[%clk 0:00:02]} 49. Rc7+ {[%clk 0:00:17]}  Kd2 {[%clk 0:00:02]} 50. Rd7+ {[%clk 0:00:17]}  Kc2 {[%clk 0:00:02]} 51. Rc7+ {[%clk 0:00:17]}  Kd2 {[%clk 0:00:03]} 52. Rd7+ {[%clk 0:00:18]}  Ke1 {[%clk 0:00:03]} 53. Re7+ {[%clk 0:00:16]}  Kf1 {[%clk 0:00:03]} 54. Rb7 {[%clk 0:00:17]}  Kg1 {[%clk 0:00:03]} 55. Rb8 {[%clk 0:00:16]}  Kh2 {[%clk 0:00:02]} 56. Rb7 {[%clk 0:00:15]}  Kh3 {[%clk 0:00:02]} 57. Rb8 {[%clk 0:00:15]}  Kh2 {[%clk 0:00:02]} 58. Rb7 {[%clk 0:00:15]}  Kh3 {[%clk 0:00:02]} 59. Rb8 {[%clk 0:00:16]}  Kh2 {[%clk 0:00:02]} 1/2-1/2


[Site "https://www.chess.com"]

[Event "Titled Tuesday Blitz February 15 Late 2022"]
[White "Hoffmann, Asa"]
[Black "Remizov, Yaroslav"]
[WhiteFideId "2001470"]
[BlackFideId "34134015"]
[WhiteElo "2117"]
[BlackElo "2360"]
[Result "0-1"]
[Round "01"]
[TimeControl "180+1"]
[Date "2022.02.16"]
[WhiteClock "0:00:12"]
[BlackClock "0:00:07"]

1. d4 {[%clk 0:02:59]}  e6 {[%clk 0:02:57]} 2. e4 {[%clk 0:02:58]}  a6 {[%clk 0:02:57]} 3. Bd3 {[%clk 0:02:53]}  c5 {[%clk 0:02:57]} 4. c3 {[%clk 0:02:49]}  d6 {[%clk 0:02:56]} 5. Nf3 {[%clk 0:02:48]}  Nf6 {[%clk 0:02:55]} 6. h3 {[%clk 0:02:47]}  Be7 {[%clk 0:02:55]} 7. Be3 {[%clk 0:02:45]}  O-O {[%clk 0:02:55]} 8. Nbd2 {[%clk 0:02:45]}  b5 {[%clk 0:02:55]} 9. Qe2 {[%clk 0:02:42]}  Bb7 {[%clk 0:02:54]} 10. O-O {[%clk 0:02:40]}  Nbd7 {[%clk 0:02:52]} 11. a4 {[%clk 0:02:38]}  c4 {[%clk 0:02:47]} 12. Bc2 {[%clk 0:02:37]}  e5 {[%clk 0:02:46]} 13. b3 {[%clk 0:02:31]}  cxb3 {[%clk 0:02:42]} 14. Bxb3 {[%clk 0:02:27]}  bxa4 {[%clk 0:02:40]} 15. Rxa4 {[%clk 0:02:23]}  Nxe4 {[%clk 0:02:37]} 16. Nxe4 {[%clk 0:02:17]}  Bxe4 {[%clk 0:02:38]} 17. dxe5 {[%clk 0:02:12]}  Bxf3 {[%clk 0:02:38]} 18. Qxf3 {[%clk 0:02:08]}  Nxe5 {[%clk 0:02:38]} 19. Qd5 {[%clk 0:02:06]}  Qd7 {[%clk 0:02:33]} 20. Bd4 {[%clk 0:02:04]}  Qb5 {[%clk 0:02:22]} 21. Rfa1 {[%clk 0:01:59]}  Rab8 {[%clk 0:02:21]} 22. Qxb5 {[%clk 0:01:52]}  axb5 {[%clk 0:02:21]} 23. Ra7 {[%clk 0:01:51]}  Bf6 {[%clk 0:02:20]} 24. Bd5 {[%clk 0:01:44]}  Nd3 {[%clk 0:01:44]} 25. Bxf6 {[%clk 0:01:32]}  gxf6 {[%clk 0:01:45]} 26. R1a6 {[%clk 0:01:25]}  Rbd8 {[%clk 0:01:43]} 27. Rb6 {[%clk 0:01:14]}  Nf4 {[%clk 0:01:43]} 28. Rxb5 {[%clk 0:01:09]}  Ne2+ {[%clk 0:01:43]} 29. Kf1 {[%clk 0:01:07]}  Nxc3 {[%clk 0:01:43]} 30. Rba5 {[%clk 0:01:06]}  Nxd5 {[%clk 0:01:43]} 31. Rxd5 {[%clk 0:01:05]}  Rfe8 {[%clk 0:01:42]} 32. g4 {[%clk 0:01:01]}  Re5 {[%clk 0:01:40]} 33. Rd3 {[%clk 0:01:00]}  d5 {[%clk 0:01:30]} 34. Kg2 {[%clk 0:00:57]}  Kg7 {[%clk 0:01:30]} 35. Ra5 {[%clk 0:00:53]}  d4 {[%clk 0:01:27]} 36. Ra4 {[%clk 0:00:52]}  Red5 {[%clk 0:01:25]} 37. f4 {[%clk 0:00:51]}  Kg6 {[%clk 0:01:20]} 38. Kf3 {[%clk 0:00:51]}  f5 {[%clk 0:01:20]} 39. Rc4 {[%clk 0:00:50]}  f6 {[%clk 0:01:19]} 40. Rb4 {[%clk 0:00:47]}  h5 {[%clk 0:01:17]} 41. gxh5+ {[%clk 0:00:43]}  Kxh5 {[%clk 0:01:16]} 42. Rb7 {[%clk 0:00:42]}  Rc8 {[%clk 0:01:03]} 43. Rb6 {[%clk 0:00:36]}  Rc3 {[%clk 0:00:53]} 44. Rxc3 {[%clk 0:00:35]}  dxc3 {[%clk 0:00:54]} 45. Rc6 {[%clk 0:00:35]}  Rd3+ {[%clk 0:00:52]} 46. Kg2 {[%clk 0:00:33]}  Kh4 {[%clk 0:00:06]} 47. Rxf6 {[%clk 0:00:28]}  Rg3+ {[%clk 0:00:06]} 48. Kf2 {[%clk 0:00:26]}  Rxh3 {[%clk 0:00:06]} 49. Rxf5 {[%clk 0:00:17]}  c2 {[%clk 0:00:06]} 50. Rc5 {[%clk 0:00:17]}  Rh1 {[%clk 0:00:07]} 51. Kf3 {[%clk 0:00:13]}  c1=Q {[%clk 0:00:06]} 52. Rxc1 {[%clk 0:00:12]}  Rxc1 {[%clk 0:00:07]} 0-1


[Site "https://www.chess.com"]

[Event "Titled Tuesday Blitz February 15 Late 2022"]
[White "Holt, Conrad"]
[Black "Bettalli, Francesco"]
[WhiteFideId "2034387"]
[BlackFideId "2816453"]
[WhiteElo "2827"]
[BlackElo "2447"]
[Result "1-0"]
[Round "01"]
[TimeControl "180+1"]
[Date "2022.02.16"]
[WhiteClock "0:00:21"]
[BlackClock "0:01:24"]

1. d4 {[%clk 0:01:37]}  e5 {[%clk 0:02:58]} 2. dxe5 {[%clk 0:01:34]}  Nc6 {[%clk 0:02:58]} 3. Nf3 {[%clk 0:01:33]}  Qe7 {[%clk 0:02:58]} 4. Nc3 {[%clk 0:01:33]}  Nxe5 {[%clk 0:02:55]} 5. e4 {[%clk 0:01:33]}  Nf6 {[%clk 0:02:55]} 6. Bg5 {[%clk 0:01:28]}  c6 {[%clk 0:02:53]} 7. Qd2 {[%clk 0:01:18]}  d6 {[%clk 0:02:44]} 8. O-O-O {[%clk 0:01:17]}  Be6 {[%clk 0:02:40]} 9. Nd4 {[%clk 0:01:12]}  O-O-O {[%clk 0:02:38]} 10. f4 {[%clk 0:00:59]}  Nc4 {[%clk 0:02:32]} 11. Bxc4 {[%clk 0:00:57]}  Bxc4 {[%clk 0:02:33]} 12. Nf5 {[%clk 0:00:58]}  Qc7 {[%clk 0:02:31]} 13. Qd4 {[%clk 0:00:57]}  Be6 {[%clk 0:02:20]} 14. Qxa7 {[%clk 0:00:56]}  Bxf5 {[%clk 0:02:17]} 15. exf5 {[%clk 0:00:53]}  d5 {[%clk 0:02:18]} 16. Na4 {[%clk 0:00:52]}  Qb8 {[%clk 0:02:09]} 17. Nb6+ {[%clk 0:00:50]}  Kc7 {[%clk 0:02:09]} 18. Qa5 {[%clk 0:00:50]}  Kd6 {[%clk 0:02:00]} 19. Nc4+ {[%clk 0:00:46]}  Kd7 {[%clk 0:01:57]} 20. Ne5+ {[%clk 0:00:45]}  Ke8 {[%clk 0:01:57]} 21. Rhe1 {[%clk 0:00:42]}  Be7 {[%clk 0:01:57]} 22. Ng4 {[%clk 0:00:35]}  Qd6 {[%clk 0:01:46]} 23. Re5 {[%clk 0:00:26]}  Kf8 {[%clk 0:01:28]} 24. Rde1 {[%clk 0:00:24]}  Re8 {[%clk 0:01:25]} 25. Nxf6 {[%clk 0:00:21]}  gxf6 {[%clk 0:01:24]} 26. Bh6+ {[%clk 0:00:21]}  Kg8 {[%clk 0:01:24]} 27. R5e3 {[%clk 0:00:21]} 1-0


[Site "https://www.chess.com"]

[Event "Titled Tuesday Blitz February 15 Late 2022"]
[White "Horak, Martin"]
[Black "Martinez Ramirez, Lennis"]
[WhiteFideId "367095"]
[BlackFideId "3509079"]
[WhiteElo "1997"]
[BlackElo "2374"]
[Result "0-1"]
[Round "01"]
[TimeControl "180+1"]
[Date "2022.02.16"]
[WhiteClock "0:00:01"]
[BlackClock "0:00:19"]

1. d4 {[%clk 0:02:52]}  Nf6 {[%clk 0:02:58]} 2. c4 {[%clk 0:02:51]}  c5 {[%clk 0:02:58]} 3. d5 {[%clk 0:02:51]}  e6 {[%clk 0:02:59]} 4. Nc3 {[%clk 0:02:48]}  exd5 {[%clk 0:02:59]} 5. cxd5 {[%clk 0:02:48]}  g6 {[%clk 0:02:59]} 6. Nf3 {[%clk 0:02:39]}  Bg7 {[%clk 0:02:59]} 7. Nd2 {[%clk 0:02:39]}  O-O {[%clk 0:02:52]} 8. e4 {[%clk 0:02:39]}  Re8 {[%clk 0:02:47]} 9. Be2 {[%clk 0:02:34]}  d6 {[%clk 0:02:32]} 10. O-O {[%clk 0:02:33]}  Nbd7 {[%clk 0:02:31]} 11. Qc2 {[%clk 0:02:16]}  b6 {[%clk 0:02:14]} 12. h3 {[%clk 0:02:00]}  a6 {[%clk 0:02:07]} 13. a4 {[%clk 0:01:59]}  Rb8 {[%clk 0:02:02]} 14. Rb1 {[%clk 0:01:45]}  h6 {[%clk 0:01:37]} 15. Nc4 {[%clk 0:01:28]}  Ne5 {[%clk 0:01:35]} 16. Nxe5 {[%clk 0:01:25]}  Rxe5 {[%clk 0:01:36]} 17. Bf4 {[%clk 0:01:25]}  Re7 {[%clk 0:01:36]} 18. Bh2 {[%clk 0:01:21]}  Qc7 {[%clk 0:01:32]} 19. f4 {[%clk 0:01:12]}  c4 {[%clk 0:01:23]} 20. Bf3 {[%clk 0:00:48]}  b5 {[%clk 0:01:22]} 21. axb5 {[%clk 0:00:45]}  axb5 {[%clk 0:01:22]} 22. b4 {[%clk 0:00:46]}  cxb3 {[%clk 0:01:13]} 23. Qxb3 {[%clk 0:00:46]}  Nd7 {[%clk 0:00:53]} 24. Rfc1 {[%clk 0:00:31]}  b4 {[%clk 0:00:52]} 25. Ne2 {[%clk 0:00:29]}  Qb6+ {[%clk 0:00:52]} 26. Kh1 {[%clk 0:00:28]}  Nc5 {[%clk 0:00:52]} 27. Qe3 {[%clk 0:00:20]}  Ba6 {[%clk 0:00:50]} 28. Bg1 {[%clk 0:00:16]}  Qb5 {[%clk 0:00:49]} 29. Nd4 {[%clk 0:00:15]}  Bxd4 {[%clk 0:00:36]} 30. Qxd4 {[%clk 0:00:16]}  Qd3 {[%clk 0:00:35]} 31. Rxc5 {[%clk 0:00:08]}  dxc5 {[%clk 0:00:25]} 32. Qxc5 {[%clk 0:00:07]}  Qxb1 {[%clk 0:00:22]} 33. Qxe7 {[%clk 0:00:07]}  b3 {[%clk 0:00:20]} 34. Qe5 {[%clk 0:00:02]}  Rc8 {[%clk 0:00:19]} 35. Kh2 {[%clk 0:00:01]}  b2 {[%clk 0:00:19]} 0-1


[Site "https://www.chess.com"]

[Event "Titled Tuesday Blitz February 15 Late 2022"]
[White "Indjic, Aleksandar"]
[Black "Papp, Petra"]
[WhiteFideId "911925"]
[BlackFideId "739049"]
[WhiteElo "2851"]
[BlackElo "2473"]
[Result "1-0"]
[Round "01"]
[TimeControl "180+1"]
[Date "2022.02.16"]
[WhiteClock "0:00:40"]
[BlackClock "0:00:06"]

1. e4 {[%clk 0:02:59]}  c6 {[%clk 0:02:57]} 2. d4 {[%clk 0:02:52]}  d5 {[%clk 0:02:57]} 3. exd5 {[%clk 0:02:52]}  cxd5 {[%clk 0:02:56]} 4. Bd3 {[%clk 0:02:52]}  Nc6 {[%clk 0:02:54]} 5. c3 {[%clk 0:02:52]}  Nf6 {[%clk 0:02:53]} 6. Bf4 {[%clk 0:02:50]}  Bg4 {[%clk 0:02:53]} 7. Qb3 {[%clk 0:02:50]}  Qd7 {[%clk 0:02:29]} 8. Nd2 {[%clk 0:02:48]}  e6 {[%clk 0:02:28]} 9. Ngf3 {[%clk 0:02:47]}  Bd6 {[%clk 0:02:25]} 10. Bg3 {[%clk 0:02:44]}  O-O {[%clk 0:02:23]} 11. O-O {[%clk 0:02:43]}  Bxf3 {[%clk 0:02:19]} 12. Nxf3 {[%clk 0:02:42]}  Qc7 {[%clk 0:02:01]} 13. Rae1 {[%clk 0:02:35]}  Nd7 {[%clk 0:01:55]} 14. Qc2 {[%clk 0:02:32]}  h6 {[%clk 0:01:45]} 15. Qd2 {[%clk 0:02:23]}  a6 {[%clk 0:01:40]} 16. Bb1 {[%clk 0:02:22]}  Bxg3 {[%clk 0:01:32]} 17. hxg3 {[%clk 0:02:22]}  b5 {[%clk 0:01:29]} 18. g4 {[%clk 0:02:19]}  Ne7 {[%clk 0:01:23]} 19. g5 {[%clk 0:02:16]}  h5 {[%clk 0:01:16]} 20. g6 {[%clk 0:02:12]}  Nxg6 {[%clk 0:01:10]} 21. Bxg6 {[%clk 0:02:10]}  fxg6 {[%clk 0:01:09]} 22. Ng5 {[%clk 0:02:07]}  Qf4 {[%clk 0:01:03]} 23. Qxf4 {[%clk 0:02:05]}  Rxf4 {[%clk 0:01:04]} 24. Nxe6 {[%clk 0:02:05]}  Rf5 {[%clk 0:01:00]} 25. Re3 {[%clk 0:01:57]}  Nf8 {[%clk 0:00:42]} 26. Rfe1 {[%clk 0:01:41]}  Nxe6 {[%clk 0:00:41]} 27. Rxe6 {[%clk 0:01:42]}  Kh7 {[%clk 0:00:42]} 28. Rd6 {[%clk 0:01:41]}  a5 {[%clk 0:00:39]} 29. Re5 {[%clk 0:01:39]}  Rxe5 {[%clk 0:00:20]} 30. dxe5 {[%clk 0:01:40]}  b4 {[%clk 0:00:21]} 31. Rxd5 {[%clk 0:01:38]}  bxc3 {[%clk 0:00:20]} 32. bxc3 {[%clk 0:01:39]}  Rc8 {[%clk 0:00:21]} 33. Rxa5 {[%clk 0:01:06]}  Rxc3 {[%clk 0:00:21]} 34. e6 {[%clk 0:01:07]}  Rc1+ {[%clk 0:00:20]} 35. Kh2 {[%clk 0:01:07]}  Re1 {[%clk 0:00:20]} 36. Ra6 {[%clk 0:01:07]}  g5 {[%clk 0:00:18]} 37. a4 {[%clk 0:01:06]}  Kg6 {[%clk 0:00:18]} 38. a5 {[%clk 0:01:06]}  Kf6 {[%clk 0:00:17]} 39. f3 {[%clk 0:01:02]}  Ra1 {[%clk 0:00:16]} 40. Kg3 {[%clk 0:01:02]}  Ra4 {[%clk 0:00:16]} 41. Kh3 {[%clk 0:00:54]}  g6 {[%clk 0:00:15]} 42. Kh2 {[%clk 0:00:51]}  g4 {[%clk 0:00:15]} 43. fxg4 {[%clk 0:00:44]}  Rxg4 {[%clk 0:00:15]} 44. Ra8 {[%clk 0:00:44]}  Re4 {[%clk 0:00:07]} 45. a6 {[%clk 0:00:41]}  Rxe6 {[%clk 0:00:07]} 46. a7 {[%clk 0:00:41]}  Ra6 {[%clk 0:00:06]} 47. Rf8+ {[%clk 0:00:40]} 1-0


[Site "https://www.chess.com"]

[Event "Titled Tuesday Blitz February 15 Late 2022"]
[White "Iturrizaga Bonelli, Eduardo"]
[Black "Batsiashvili, Nino"]
[WhiteFideId "3901211"]
[BlackFideId "13602993"]
[WhiteElo "2850"]
[BlackElo "2467"]
[Result "1-0"]
[Round "01"]
[TimeControl "180+1"]
[Date "2022.02.16"]
[WhiteClock "0:01:27"]
[BlackClock "0:00:04"]

1. c4 {[%clk 0:03:00]}  e6 {[%clk 0:02:58]} 2. g3 {[%clk 0:03:00]}  d5 {[%clk 0:02:58]} 3. Bg2 {[%clk 0:03:01]}  dxc4 {[%clk 0:02:57]} 4. Nf3 {[%clk 0:03:01]}  Nf6 {[%clk 0:02:49]} 5. O-O {[%clk 0:03:00]}  Nc6 {[%clk 0:02:47]} 6. Qa4 {[%clk 0:02:59]}  e5 {[%clk 0:02:47]} 7. Nxe5 {[%clk 0:02:56]}  Bd7 {[%clk 0:02:25]} 8. Nxc6 {[%clk 0:02:53]}  bxc6 {[%clk 0:02:25]} 9. Bxc6 {[%clk 0:02:53]}  Bd6 {[%clk 0:02:17]} 10. Qxc4 {[%clk 0:02:48]}  h5 {[%clk 0:02:12]} 11. h4 {[%clk 0:02:37]}  Rb8 {[%clk 0:02:03]} 12. a3 {[%clk 0:02:18]}  Rb6 {[%clk 0:01:12]} 13. Bg2 {[%clk 0:01:50]}  Ng4 {[%clk 0:00:34]} 14. Qe4+ {[%clk 0:01:41]}  Kf8 {[%clk 0:00:34]} 15. d3 {[%clk 0:01:41]}  Bc6 {[%clk 0:00:20]} 16. Qd4 {[%clk 0:01:38]}  Bxg2 {[%clk 0:00:21]} 17. Kxg2 {[%clk 0:01:38]}  Qe8 {[%clk 0:00:20]} 18. Qe4 {[%clk 0:01:35]}  Qd7 {[%clk 0:00:15]} 19. Nc3 {[%clk 0:01:35]}  Bc5 {[%clk 0:00:13]} 20. Qa8+ {[%clk 0:01:33]}  Qe8 {[%clk 0:00:10]} 21. Qxe8+ {[%clk 0:01:33]}  Kxe8 {[%clk 0:00:11]} 22. Na4 {[%clk 0:01:33]}  Rc6 {[%clk 0:00:10]} 23. Bd2 {[%clk 0:01:28]}  Bxf2 {[%clk 0:00:06]} 24. Rxf2 {[%clk 0:01:27]}  Nxf2 {[%clk 0:00:07]} 25. Kxf2 {[%clk 0:01:27]}  Rc2 {[%clk 0:00:07]} 26. Bc3 {[%clk 0:01:28]}  Kd7 {[%clk 0:00:08]} 27. Nc5+ {[%clk 0:01:27]}  Kc6 {[%clk 0:00:08]} 28. Nb3 {[%clk 0:01:27]}  Kd5 {[%clk 0:00:04]} 29. Nd4 {[%clk 0:01:27]}  c5 {[%clk 0:00:04]} 30. Nxc2 {[%clk 0:01:27]} 1-0


[Site "https://www.chess.com"]